Cogmind - Beta 13 @@@ ROGUE MODE // 2024.04.26 @ 16:15:07 Player: YBOUZL Result: Destroyed by G-47 Trooper with Particle Gun Performance ------------- Evolutions (2) 1000 Regions Visited (6) 1200 Robots Destroyed (39) 195 Value Destroyed (1241) 1241 Prototype IDs (2) 40 Alien Tech Used (0) 0 Bonus (263) 263 TOTAL SCORE: 3939 Bonus ------- Pacifist 200 Follower Combat Kills 63 Cogmind --------- Core Integrity 0/550 Matter 179/300 Energy 100/100 System Corruption 2% Temperature Cool (21) Movement Core (150) Ox2 Location -8/Storage Parts ------- > --- POWER (1) -------- (None) > --- PROPULSION (4) --- (None) > --- UTILITY (3) ------ Coolant Injector Advanced Targeting Computer > --- WEAPON (3) ------- Enhanced Autogun Heavy Flail > --- INVENTORY (5) ---- Heavy Ion Engine Huge Storage Unit Drone Bay (2/2) Drone Bay (2/2) Enhanced Autogun Peak State ------------ > --- POWER ------------ Light Angular Momentum Engine > --- PROPULSION ------- Aluminum Leg Carbon-fiber Leg Carbon-fiber Leg VSS Leg > --- UTILITY ---------- Coolant Injector Huge Storage Unit Improved Targeting Computer > --- WEAPON ----------- Light Assault Rifle Ripper > --- INVENTORY -------- Light Ion Engine Light Nuclear Core Aluminum Leg High-capacity Storage Unit [Rating: 27] Favorites ----------- Power Ion Engine Engine Ion Engine Power Core Light Nuclear Core Propulsion Aluminum Leg Leg Aluminum Leg Flight Unit Flight Unit Utility Improved Targeting Computer Device Coolant Injector Storage Huge Storage Unit Processor Improved Targeting Computer Weapon Small Laser Energy Gun Small Laser Energy Cannon Beam Cannon Ballistic Gun Shotgun Launcher Mini Grenade Launcher Special Weapon Mining Laser Impact Weapon Heavy Flail Slashing Weapon Ripper Build | -11 -10 -10 -9 -9 -8 -8 ------- Run | Yrd Mat Min Mat Min Mat Sto Slots Evolved 4 | . . . 2 . 2 . Power . | . . . . . . . Propulsion 2 | . . . 2 . . . Utility 1 | . . . . . 1 . Weapon 1 | . . . . . 1 . Parts Attached 51 | 7 1 2 7 9 23 2 Power 11 | 2 . . 1 2 6 . Engine 9 | 2 . . 1 2 4 . Core 2 | . . . . . 2 . Reactor . | . . . . . . . Propulsion 13 | 2 . . . 2 8 1 Treads . | . . . . . . . Leg 11 | 2 . . . . 8 1 Wheel . | . . . . . . . Hover . | . . . . . . . Flight 2 | . . . . 2 . . Utility 11 | 1 1 2 2 1 4 . Device 2 | . . . . . 2 . Storage 5 | 1 1 2 . . 1 . Processor 4 | . . . 2 1 1 . Hackware . | . . . . . . . Protection . | . . . . . . . Artifact . | . . . . . . . Weapon 16 | 2 . . 4 4 5 1 Energy Gun 3 | 2 . . 1 . . . Energy Cannon 1 | . . . 1 . . . Ballistic Gun 4 | . . . 2 1 . 1 Ballistic Cannon . | . . . . . . . Launcher 4 | . . . . . 4 . Special Weapon 1 | . . . . 1 . . Impact Weapon 1 | . . . . . 1 . Slashing Weapon 2 | . . . . 2 . . Piercing Weapon . | . . . . . . . Special Melee Weapon . | . . . . . . . Unidentified Prototypes 2 | . . . . . 1 1 Parts Lost 28 | . 1 . 1 5 15 6 Power 7 | . . . . 2 4 1 Propulsion 11 | . 1 . . 1 7 2 Utility 1 | . . . . . . 1 Weapon 9 | . . . 1 2 4 2 Highest Loss Streak 7 | . 1 . 1 4 7 5 To Critical Strikes . | . . . . . . . Average Slot Usage (%) 64 | . 84 57 48 61 65 60 Engine 9 | . 14 14 11 11 6 . Leg 14 | . 27 14 11 3 17 9 Flight 1 | . . . . 3 . . Device 3 | . . . . . 9 9 Storage 2 | . 13 . . . 1 . Processor 11 | . . . 5 22 13 10 Energy Gun 7 | . 28 28 8 . . . Ballistic Gun 4 | . . . 8 10 2 . Launcher 2 | . . . . . 4 15 Special Weapon 1 | . . . . 7 . . Impact Weapon 2 | . . . . . 4 9 Slashing Weapon 1 | . . . . 3 2 . Naked Turns . | . . . . . . . Heaviest Build 94 | 12 87 7 13 11 94 11 Greatest Support 52 | 20 20 10 10 10 52 23 Greatest Overweight (x) 4 | . 4 . 1 3 2 2 Average Overweight (x) . | . 2 . . 1 . . Largest Inventory Capacity 25 | 8 25 20 5 5 25 5 Average Capacity 8 | 6 21 5 5 5 9 5 Most Carried 5 | 5 3 5 5 5 5 5 Average Carried 3 | 2 1 4 4 3 2 3 Final Capacity 8 | 8 5 5 5 5 5 5 Final Carried 5 | 1 3 5 4 4 2 5 Class Distribution -------------------- 87% | Mutant 12% | Scavenger-Mutant Dominant Class ---------------- Mutant | -10/Materials Mutant | -10/Mines Mutant | -9/Materials Mutant | -9/Mines Mutant | -8/Materials Mutant | -8/Storage Resources | -11 -10 -10 -9 -9 -8 -8 ----------- Run | Yrd Mat Min Mat Min Mat Sto Matter Collected 895 | 197 . 57 97 94 370 80 Remotely . | . . . . . . . Salvage Created 972 | . . . 136 51 528 257 Parts 55 | . . . 20 9 15 11 Haulers Intercepted . | . . . . . . . Recyclers Shooed 2 | . . . . 1 . 1 Parts Field Recycled . | . . . . . . . Retrieved Matter . | . . . . . . . Parts Self-Destructed . | . . . . . . . Prevented . | . . . . . . . Kills | -11 -10 -10 -9 -9 -8 -8 ------- Run | Yrd Mat Min Mat Min Mat Sto Combat Hostiles Destroyed 33 | . . . 8 3 15 7 Melee 4 | . . . . 1 3 . Guns 10 | . . . 8 2 . . AOE 18 | . . . . . 11 7 Classes Destroyed 9 | . . . 2 1 6 . Worker 2 | . . . . . 1 1 Builder 1 | . . . . . 1 . Tunneler 1 | . . . . 1 . . Watcher 2 | . . . 1 . . 1 Swarmer 11 | . . . 8 3 . . Grunt 16 | . . . . . 10 6 Brawler 1 | . . . . . 1 . Sentry 4 | . . . . . 3 1 Hunter 1 | . . . . . 1 . Best Kill Streak 8 | . . . 4 3 3 8 Combat Bots Only 6 | . . . 4 3 3 6 Max Kills in Single Turn 3 | . . . 2 1 3 3 Gunslinging . | . . . . . . . Exploded 3 | . . . . . 3 2 Melee 1 | . . . . 1 1 . Uniques/NPCs Destroyed . | . . . . . . . Combat | -11 -10 -10 -9 -9 -8 -8 -------- Run | Yrd Mat Min Mat Min Mat Sto Hostile Shots Fired 265 | . 24 . 37 32 132 40 Missed 68 | . 8 . 12 6 33 9 Damage Taken 2811 | . 245 . 210 217 1473 666 Core 649 | . 34 . 30 31 375 179 Absorbed by Shields . | . . . . . . . Core Remaining (%) 90 | 100 . 86 . 84 . . Volleys Fired 61 | . 3 . 15 11 25 7 Largest 2 | . 2 . 2 2 2 2 Hottest 123 | . 80 . 80 123 60 60 Shots Fired 92 | . 6 . 24 17 34 11 Gun 55 | . 6 . 23 11 14 1 Cannon 1 | . . . 1 . . . Launcher 30 | . . . . . 20 10 Special 6 | . . . . 6 . . Kinetic 41 | . . . 15 11 14 1 Thermal 19 | . 6 . 7 6 . . Explosive 30 | . . . . . 20 10 Electromagnetic 2 | . . . 2 . . . Robot Hit Streak 18 | . 3 . 3 3 18 5 Robot Miss Streak 3 | . 1 . 3 3 2 1 Penetration Max . | . . . . . . . Secondary Targets . | . . . . . . . Shots Hit Robots 64 | . 3 . 13 9 31 8 Core Hits 67 | . 1 . 10 5 29 22 Critical Kills 1 | . . . . 1 . . Critical Parts Destroyed . | . . . . . . . Critical Strikes 1 | . . . . 1 . . Destroy 1 | . . . . 1 . . Melee Attacks 12 | . . . . 3 9 . Impact 2 | . . . . . 2 . Slashing 10 | . . . . 3 7 . Piercing . | . . . . . . . Sneak Attacks 2 | . . . . 1 1 . Combat Hostiles . | . . . . . . . Follow-up Attacks . | . . . . . . . Damage Inflicted 3036 | . 34 . 162 233 1655 952 Guns 382 | . 34 . 162 72 96 18 Cannons . | . . . . . . . Explosions 2160 | . . . . . 1226 934 Melee 470 | . . . . 137 333 . Ramming . | . . . . . . . Kinetic 297 | . . . 111 72 96 18 Thermal 91 | . 34 . 33 24 . . Explosive 2160 | . . . . . 1226 934 Electromagnetic 18 | . . . 18 . . . Impact 150 | . . . . . 150 . Slashing 320 | . . . . 137 183 . Piercing . | . . . . . . . Highest Corruption 2 | . . . . . . 2 Average Corruption 2 | . . . . . . 2 Corruption Purged . | . . . . . . . Corruption Blocked . | . . . . . . . Effects 3 | . . . . . . 3 Message Errors 1 | . . . . . . 1 Data Loss (minor) 1 | . . . . . . 1 Misfires 1 | . . . . . . 1 Overload Shots . | . . . . . . . Overflow Damage 124 | . . . . 16 101 7 Projectiles . | . . . . . . . Explosions 8 | . . . . . 1 7 Melee 116 | . . . . 16 100 . Knockbacks . | . . . . . . . Impact . | . . . . . . . Kinetic . | . . . . . . . Secondary . | . . . . . . . Self-Inflicted Damage 139 | . . . . . 80 59 Shots 5 | . . . . . 3 2 Rammed . | . . . . . . . Targets Rammed . | . . . . . . . Kicked . | . . . . . . . Crushed . | . . . . . . . Highest Temperature 90 | . 90 . 12 14 23 18 Average Temperature 14 | . 43 . 8 6 8 10 Received Heat Transfer 843 | . 96 . . . 423 324 Siege Activations . | . . . . . . . Robots Corrupted . | . . . . . . . Combat Hostiles . | . . . . . . . Parts Fried 3 | . . . . . 3 . Impact Corruptions 3 | . . . . . 3 . Robots Melted . | . . . . . . . Combat Hostiles . | . . . . . . . Parts Melted . | . . . . . . . Heat Transferred 200 | . 75 . 75 50 . . Parts Sabotaged . | . . . . . . . Parts Stolen . | . . . . . . . Parts Stripped . | . . . . . . . Power Chain Reactions . | . . . . . . . Alert | -11 -10 -10 -9 -9 -8 -8 ------- Run | Yrd Mat Min Mat Min Mat Sto Peak Influence 398 | . 20 3 208 215 333 398 Initial 140 | . . 3 . 81 7 140 Average 83 | . 12 3 87 102 97 236 Maximum Alert Level 1 | . . . 1 1 1 1 Low Security (%) 88 | 100 100 100 90 97 84 23 Level 1 11 | . . . 9 2 15 76 Level 2 . | . . . . . . . Level 3 . | . . . . . . . Level 4 . | . . . . . . . Level 5 . | . . . . . . . High Security . | . . . . . . . Max Security . | . . . . . . . Squads Dispatched 4 | . 1 . . . 2 1 Investigation 1 | . 1 . . . . . Extermination . | . . . . . . . Reinforcement 3 | . . . . . 2 1 Assault . | . . . . . . . Garrison . | . . . . . . . Intercept . | . . . . . . . Searches Triggered . | . . . . . . . Construction Impeded . | . . . . . . . Haulers Reinforced . | . . . . . . . Active Scanning Responses . | . . . . . . . Cargo Convoy Interrupts . | . . . . . . . Stealth | -11 -10 -10 -9 -9 -8 -8 --------- Run | Yrd Mat Min Mat Min Mat Sto Distress Signals 1 | . . . . . . 1 Communications Jammed . | . . . . . . . Distress Signals . | . . . . . . . Times Spotted 58 | . 5 . 12 8 20 13 Peak Tracking Total 6 | . 3 . 4 4 4 6 Tactical Retreats 1 | . . . . 1 . . Traps | -11 -10 -10 -9 -9 -8 -8 ------- Run | Yrd Mat Min Mat Min Mat Sto Traps Triggered 4 | . 2 . . . . 2 Indirectly . | . . . . . . . Trap Hack Attempts . | . . . . . . . Triggered . | . . . . . . . Disarmed . | . . . . . . . Reprogrammed . | . . . . . . . Reused . | . . . . . . . Traps Extracted . | . . . . . . . Installed . | . . . . . . . Triggered . | . . . . . . . Machines | -11 -10 -10 -9 -9 -8 -8 ---------- Run | Yrd Mat Min Mat Min Mat Sto Machines Disabled 5 | . . . . . 4 1 Max in Single Turn 1 | . . . . . 1 1 Garrison Access 1 | . . . . . 1 . Machines Repaired . | . . . . . . . Machines Dismantled . | . . . . . . . Machines Sabotaged . | . . . . . . . Overloaded Fab Kills . | . . . . . . . Hacking | -11 -10 -10 -9 -9 -8 -8 --------- Run | Yrd Mat Min Mat Min Mat Sto Machines Accessed 9 | . 3 1 2 . 2 1 Terminals 5 | . 3 1 . . . 1 Fabricators . | . . . . . . . Repair Stations . | . . . . . . . Recycling Units 2 | . . . 1 . 1 . Scanalyzers 1 | . . . 1 . . . Garrison Access 1 | . . . . . 1 . Total Hacks 19 | . 9 2 5 . 2 1 Successful 12 | . 3 1 5 . 2 1 Failed 7 | . 6 1 . . . . Catastrophic 1 | . 1 . . . . . Database Lockouts . | . . . . . . . Manual . | . . . . . . . Terminals 12 | . 9 2 . . . 1 Fabricators . | . . . . . . . Repair Stations . | . . . . . . . Recycling Units 4 | . . . 3 . 1 . Scanalyzers 2 | . . . 2 . . . Garrison Access 1 | . . . . . 1 . Terminal Hacks 5 | . 3 1 . . . 1 Open Door 1 | . . . . . . 1 Branch Access Points 1 | . 1 . . . . . Reinforcement Status 1 | . 1 . . . . . Hauler Manifests 1 | . 1 . . . . . Zone Layout 1 | . . 1 . . . . Fabricator Hacks . | . . . . . . . Repair Station Hacks . | . . . . . . . Recycling Unit Hacks 4 | . . . 3 . 1 . Report Inventory 2 | . . . 1 . 1 . Retrieve Matter 1 | . . . 1 . . . Retrieve Components 1 | . . . 1 . . . Scanalyzer 2 | . . . 2 . . . Insert Component 1 | . . . 1 . . . Analyze 1 | . . . 1 . . . Garrison Access Hacks 1 | . . . . . 1 . Seal Access 1 | . . . . . 1 . Unauthorized Hacks . | . . . . . . . Terminals . | . . . . . . . Fabricators . | . . . . . . . Repair Stations . | . . . . . . . Recycling Units . | . . . . . . . Scanalyzers . | . . . . . . . Garrison Access . | . . . . . . . Data Cores Recovered . | . . . . . . . Used . | . . . . . . . Hacking Detections 6 | . 3 1 2 . . . Full Trace Events 1 | . 1 . . . . . Feedback Events . | . . . . . . . Feedback Blocked . | . . . . . . . Robot Schematics Acquired . | . . . . . . . Robots Built . | . . . . . . . Authchips . | . . . . . . . Time . | . . . . . . . Total Robot Build Rating . | . . . . . . . Part Schematics Acquired 1 | . . . 1 . . . Parts Built . | . . . . . . . Authchips . | . . . . . . . Time . | . . . . . . . Total Part Build Rating . | . . . . . . . Parts Repaired . | . . . . . . . Time . | . . . . . . . Parts Recycled . | . . . . . . . Recycled Matter . | . . . . . . . Retrieved Matter . | . . . . . . . Retrieved Components 2 | . . . 2 . . . Parts Scanalyzed 1 | . . . 1 . . . Part Schematics Acquired 1 | . . . 1 . . . Parts Damaged . | . . . . . . . Bothacking | -11 -10 -10 -9 -9 -8 -8 ------------ Run | Yrd Mat Min Mat Min Mat Sto Used RIF Installer . | . . . . . . . Robots Hacked . | . . . . . . . Non-combat . | . . . . . . . Combat . | . . . . . . . Robot Hacks Applied . | . . . . . . . Relay Couplers Released . | . . . . . . . Fabnet Peak Effective % . | . . . . . . . Robots Rewired . | . . . . . . . Allies Hacked . | . . . . . . . Hacks Repelled . | . . . . . . . Allies | -11 -10 -10 -9 -9 -8 -8 -------- Run | Yrd Mat Min Mat Min Mat Sto Total Allies 3 | . . . . 3 . . Largest Group 2 | . . . . 2 2 . Highest-Rated Group 46 | . . . . 46 46 . Highest-Rated Ally 31 | . . . . 31 31 . Total Orders . | . . . . . . . Ally Attacks 20 | . . . . 6 14 . Total Damage 315 | . . . . 105 210 . Kills 5 | . . . . 4 1 . Allies Corrupted . | . . . . . . . Allies Melted . | . . . . . . . Intel | -11 -10 -10 -9 -9 -8 -8 ------- Run | Yrd Mat Min Mat Min Mat Sto Robot Analysis Total . | . . . . . . . Derelict Logs Recovered 2 | . . 1 . 1 . . Drone Launches . | . . . . . . . Drone Recoveries . | . . . . . . . Exploration | -11 -10 -10 -9 -9 -8 -8 ------------- Run | Yrd Mat Min Mat Min Mat Sto Turns Passed 2177 | 44 312 189 234 537 738 123 Spaces Moved 1410 | 37 111 154 116 377 533 82 Core 119 | 20 . . . 95 . 4 Treads . | . . . . . . . Legs 1042 | 17 111 154 116 85 481 78 Wheels . | . . . . . . . Hover . | . . . . . . . Flight 249 | . . . . 197 52 . Fastest Speed 34 | 50 120 120 120 34 34 100 Average Speed 130 | 82 271 120 152 123 110 120 Slowest Speed 400 | 120 400 120 190 200 262 150 Overloaded Moves . | . . . . . . . Propulsion Burnouts . | . . . . . . . Robots Hopped . | . . . . . . . Cave-ins Triggered . | . . . . . . . Exploration Rate (%) 31 | 3 22 53 15 63 43 18 Regions Visited 6 Branch Regions 3 Pre-discovered Areas 1 | . . 1 . . . . Known Exits Taken 2 | . 1 . 1 . . . Unknown Exits Taken 4 | 1 . 1 . 1 1 . Scrap Searched 3 | . . 1 . 2 . . Spaces Dug 3 | . . . . 3 . . Terrain Destroyed 217 | . . . . 5 147 65 Melee . | . . . . . . . Projectile 5 | . . . . 5 . . AOE 212 | . . . . . 147 65 Terrain Rammed . | . . . . . . . Walls Destroyed . | . . . . . . . Machines Disabled . | . . . . . . . Actions | -11 -10 -10 -9 -9 -8 -8 --------- Run | Yrd Mat Min Mat Min Mat Sto Total 1622 | 49 116 159 149 413 640 96 Wait 34 | . . . 3 5 26 . Move 1404 | 36 110 153 115 376 532 82 Hop . | . . . . . . . Pick Up 44 | 5 1 2 4 8 19 5 Fast Attach 5 | 3 . . 2 . . . Attach 39 | 4 . 2 2 8 21 2 Detach 5 | . 1 2 . 1 1 . Swap 7 | . 1 . 3 1 2 . Drop 11 | 1 . . 5 . 5 . Fire 61 | . 3 . 15 11 25 7 Melee 12 | . . . . 3 9 . Ram . | . . . . . . . Kick . | . . . . . . . Crush . | . . . . . . . Escape Stasis . | . . . . . . . Rewire . | . . . . . . . Trap . | . . . . . . . Miscellaneous . | . . . . . . . Route ------- -11/Scrapyard -10/Materials -10/Mines -9/Materials -9/Mines -8/Materials -8/Storage History --------- Turn | Location | Event 6 | -11/Scrapyard | Discovered new exit (range 16) 45 | -11/Scrapyard | Entered Materials 59 | -10/Materials | Identified exit to Mines 301 | -10/Materials | Build established: Mutant 357 | -10/Materials | Entered Mines 360 | -10/Mines | YI-UF0 nonchalantly dropped a Grenade Launcher on the ground 524 | -10/Mines | Learned location of Storage (-8) 526 | -10/Mines | Discovered new exit (range 9) 546 | -10/Mines | Entered Materials 546 | -9/Materials | Evolved 2 slots: Propulsion x2 774 | -9/Materials | Discovered new exit (range 6) 779 | -9/Materials | Identified exit to Mines 780 | -9/Materials | Entered Mines 783 | -9/Mines | Received a Mining Laser from a helpful Derelict 875 | -9/Mines | Learned Materials stockpile data 898 | -9/Mines | Met a Derelict bent on vengeance 1116 | -9/Mines | A weapon hastily lodged in a ceiling crevice suddenly fell to the ground 1195 | -9/Mines | Lost 4 parts (2p2w) 1301 | -9/Mines | Discovered new exit (range 9) 1317 | -9/Mines | Entered Materials 1317 | -8/Materials | Accompanied by 2 allies 1317 | -8/Materials | Evolved 2 slots: Utility x1, Weapon x1 1322 | -8/Materials | Led the pair of lost Derelicts to an unsafe place 1585 | -8/Materials | Lost 4 parts (2n2w) 1691 | -8/Materials | Lost 7 parts (3p3n1w) 1875 | -8/Materials | Core integrity fell below 50% 2039 | -8/Materials | Discovered new exit (range 12) 2055 | -8/Materials | Entered Storage 2155 | -8/Storage | Core integrity fell below 20% 2178 | -8/Storage | Destroyed by G-47 Trooper with Particle Gun Last Messages --------------- G-47 Trooper destroyed. Mni. Grenade Launcher destroyed. K-01 Serf collects debris. Lgt. Nuclear Core destroyed. Critical hit (Burn: +37). R,NMWE&SFAT3SPEGEHHUOCOJ=G>SWQ40 Imp. Aluminum Leg destroyed. R-06 Scavenger collects Particle Gun. The unstable cave ceiling collapses. U-05 Engineer builds a Wall. R-06 Scavenger collects Imp. Heat Sink. Aluminum Leg destroyed. R-06 Scavenger collects Particle Gun. Acquired Prototype Ballistic Gun. Identified Enh. Autogun. R-06 Scavenger collects Imp. Heat Sink. Critical hit (Burn: +37). The unstable cave ceiling collapses. Acquired Enh. Autogun. Critical hit (Burn: +37). Map ----- +----------------------------------------------------+ | ?????????????????????#######??????????????????? | | ?????????????????????# ###########????????? | | ?????????????????????# #????????? | | ?????????????????????# #????????? | | ?????????????????????# #????????? | | ?????????????????????# ####/#####????????? | | ?????????????????????# #?#T #??????????? | | ?????????????????????# # #?### ##??????????? | | ?????????????????????## ##??# !#??????????? | | ?????????????????????# ##???# !#??????????? | | ?????????????????????## #????#! !#??????????? | | ??????????????????????# #????#! !#??????????? | | ?????????????????????## #????#####??????????? | | ????????????????????## ###?????????????????? | | ????????????????????# #?????????????????? | | ????????????????????# ###########???????? | | ????????????????????# ??????? | | ?????????????####??### ??????? | | ?????????????# #?# ??????? | | ????????????## ## ??????? | | ???????????## ### ??????? | | ???? ##### # #####+##############???????? | | ?????? + "% %= + #???????????????? | | ????????## g g # #???????????????? | | ????????# r """"" #???????????????? | | ????????# % g @ " #???????????????? | | ????????# % % ## """" #???????????????? | | ????????# # "?"" #???????????????? | | ????????# ## "[=[" #???????????????? | | ????????# # ## """" #???????????????? | | ????????# ?# ?# #???????????????? | | ????????# ??# ?### ######???????????????? | | ????????#????# ?? ????????????????????? | | ?????????????# ??!! ???????????????????? | | ????????????? ? ! ??????????????????? | | ????????????##### ? = ??????????????????? | | ????????????????# ?#+##+##+##?????????????????? | | ????????????????+????????? #??????????????????? | | ?????????????????????????? #??????????????????? | | ???????????????????????????#??????????????????? | | ??????????????????????????????????????????????? | | ??????????????????????????????????????????????? | | ??????????????????????????????????????????????? | | ??????????????????????????????????????????????? | | ??????????????????????????????????????????????? | | ??????????????????????????????????????????????? | | ??????????????????????????????????????????????? | | ??????????????????????????????????????????????? | | ??????????????????????????????????????????????? | | ??????????????????????????????????????????????? | +----------------------------------------------------+ Best States ------------- Heat Dissipation 31 Coolant Potential 65 Energy Generation 18 Energy Capacity 280 Matter Stores 300 Matter Capacity 300 Sight Range 18 Terrain Scan Range 16 Terrain Scan Density 10 Evasion (%) 63 Targeting Accuracy 14 Item Schematics ----------------- Hcp. Storage Unit | -9/Materials | Scanalyzed Robot Schematics ------------------ None Fabricated ------------ Nothing Alien Tech Used ----------------- None Achievements -------------- Maybe Next Time I'll Detach My Launcher Challenges ------------ None Game ------ Seed StorageScatterLeg Manual? 0 Play Time 00:25:03 Cumulative 7.2 hours Start 2024.04.26 @ 15:51:54 End 2024.04.26 @ 16:15:07 Sessions 1 Manual Loads 0 Difficulty Rogue Special Mode None Game No. 21 Rogue 21 Adventurer 0 Explorer 0 Win Type - Total 0 Types 0/0/0/0/0/0/0/0/0 Lore% 14 Gallery% 15 Achievement% 12 Wizard Run 0 Options --------- Layout 1 ASCII 0 Keyboard 0 Movement Mouse Keybinds 0 Fullscreen 1 Font 24/Smallcaps Map View 50x35 Zoom Use 0% Tactical HUD 0 Map Filters NONE Filters NONE Steam 1 RUN: 67cba739-10e5-4205-812b-b67216dd6d39